Cogmind - Beta 16 @@@ ROGUE MODE // 2025.10.23 @ 20:56:28 Player: Conlarando Result: Destroyed by G-34 Mercenary with Small Laser Performance ------------- Evolutions (1) 500 Regions Visited (2) 400 Robots Destroyed (50) 250 Value Destroyed (1179) 1179 Prototype IDs (4) 80 Alien Tech Used (0) 0 Bonus (11) 11 TOTAL SCORE: 2420 Bonus ------- High Alert Combat Kills 11 Cogmind --------- Core Integrity 0/400 Matter 205/300 Energy 265/265 System Corruption 0% Temperature Cool (6) Movement Treading (240) Ox1 Location -9/Materials Parts ------- > --- POWER (1) -------- Improved Ion Engine > --- PROPULSION (2) --- Light Treads Light Treads > --- UTILITY (4) ------ High-capacity Storage Unit Visual Processing Unit Improved Terrain Scan Processor Core Shielding > --- WEAPON (2) ------- Light Assault Rifle Rocket Launcher > --- INVENTORY (20) --- Ion Engine Flight Unit Small Storage Unit Weight Redist. System Structural Scanner Visual Processing Unit Sensor Array Signal Interpreter Signal Interpreter Signal Interpreter Terrain Scan Processor Improved Terrain Scan Processor Propulsion Shielding Hacking Suite Hacking Suite Hacking Suite Hacking Suite Hacking Suite Hacking Suite Peak State ------------ > --- POWER ------------ Improved Ion Engine > --- PROPULSION ------- Light Treads Light Treads > --- UTILITY ---------- High-capacity Storage Unit Visual Processing Unit Improved Terrain Scan Processor Improved Terrain Scan Processor > --- WEAPON ----------- Light Assault Rifle Rocket Launcher > --- INVENTORY -------- Ion Engine Flight Unit Small Storage Unit Weight Redist. System Structural Scanner Visual Processing Unit Sensor Array Signal Interpreter Signal Interpreter Signal Interpreter Terrain Scan Processor Improved Terrain Scan Processor Propulsion Shielding Hacking Suite Hacking Suite Hacking Suite Hacking Suite Hacking Suite Hacking Suite Rocket Launcher [Rating: 19] Favorites ----------- Power Ion Engine Engine Ion Engine Propulsion Light Treads Treads Light Treads Wheel Wheel Utility Light Armor Plating Device Cooling System Storage High-capacity Storage Unit Processor Visual Processing Unit Protection Light Armor Plating Weapon Advanced Beam Cannon Energy Gun Medium Laser Energy Cannon Advanced Beam Cannon Ballistic Gun Assault Rifle Launcher Rocket Launcher Build | -11 -10 -9 ------- Run | Yrd Mat Mat Slots Evolved 2 | . . 2 Power . | . . . Propulsion . | . . . Utility 2 | . . 2 Weapon . | . . . Parts Attached 41 | 6 9 26 Power 5 | 1 1 3 Engine 5 | 1 1 3 Core . | . . . Reactor . | . . . Propulsion 8 | 2 . 6 Treads 6 | 2 . 4 Leg . | . . . Wheel 2 | . . 2 Hover . | . . . Flight . | . . . Utility 13 | 1 3 9 Device 2 | . 1 1 Storage 3 | 1 1 1 Processor 3 | . . 3 Hackware . | . . . Protection 5 | . 1 4 Artifact . | . . . Weapon 15 | 2 5 8 Energy Gun 3 | 2 . 1 Energy Cannon 3 | . 3 . Ballistic Gun 6 | . 2 4 Ballistic Cannon . | . . . Launcher 3 | . . 3 Special Weapon . | . . . Impact Weapon . | . . . Slashing Weapon . | . . . Piercing Weapon . | . . . Special Melee Weapon . | . . . Unidentified Prototypes 2 | . 1 1 Parts Lost 15 | . . 15 Power 2 | . . 2 Propulsion 3 | . . 3 Utility 4 | . . 4 Weapon 6 | . . 6 Highest Loss Streak 5 | . . 5 To Critical Strikes . | . . . Average Backups 14 | 1 8 17 Power . | . . . Propulsion 1 | . . 1 Utility 10 | . 6 12 Weapon 2 | . . 3 Tool/Special . | . . . Unused Backups 25 | . 3 22 Power 1 | . . 1 Propulsion 4 | . 2 2 Utility 19 | . . 19 Weapon 1 | . 1 . Tool/Special . | . . . Average Slot Usage (%) 94 | . 95 94 Engine 11 | . 14 11 Treads 22 | . 28 20 Device 8 | . 3 10 Storage 11 | . 14 11 Processor 4 | . . 6 Protection 10 | . 7 11 Energy Gun 2 | . 7 . Energy Cannon 7 | . 7 7 Ballistic Gun 12 | . 11 12 Launcher 1 | . . 1 Peak Build Rating 19 | 6 13 19 Average Rating 12 | 5 8 14 On Entrance 6 | . 6 13 Avg Prop Armor Cover (%) 12 | . . 12 Naked Turns . | . . . Heaviest Build 61 | 12 35 61 Greatest Support 40 | 40 40 40 Greatest Overweight (x) 4 | 1 . 4 Average Overweight (x) . | . . 1 Largest Inventory Capacity 20 | 8 15 20 Average Capacity 16 | 7 10 19 Most Carried 20 | 2 15 20 Average Carried 15 | 1 8 17 Final Capacity 20 | 8 15 20 Final Carried 19 | 2 15 19 Class Distribution -------------------- 76% | Mutant 23% | Scavenger-Mutant Dominant Class ---------------- Mutant | -10/Materials Mutant | -9/Materials Resources | -11 -10 -9 ----------- Run | Yrd Mat Mat Matter Collected 1314 | 221 219 874 Remotely . | . . . Salvage Created 1614 | . 213 1401 Parts 105 | . 8 97 Haulers Intercepted 5 | . 2 3 Recyclers Shooed 3 | . 2 1 Parts Field Recycled . | . . . Retrieved Matter . | . . . Parts Self-Destructed . | . . . Prevented . | . . . Parts Restored . | . . . Kills | -11 -10 -9 ------- Run | Yrd Mat Mat Combat Hostiles Destroyed 34 | . 2 32 Guns 19 | . 2 17 Cannons 6 | . . 6 AOE 9 | . . 9 Classes Destroyed 10 | . 3 7 Worker 1 | . . 1 Builder 2 | . . 2 Hauler 5 | . 2 3 Recycler 2 | . . 2 Operator 2 | . . 2 Watcher 4 | . 1 3 Swarmer 10 | . . 10 Grunt 15 | . 2 13 Duelist 1 | . . 1 Sentry 8 | . . 8 Best Kill Streak 8 | . 2 8 Combat Bots Only 5 | . 2 5 Max Kills in Single Turn 3 | . 1 3 Gunslinging 1 | . . 1 Exploded 2 | . . 2 Melee . | . . . Uniques/NPCs Destroyed . | . . . Combat | -11 -10 -9 -------- Run | Yrd Mat Mat Hostile Shots Fired 224 | . 8 216 Missed 47 | . 2 45 Hits 177 | . 6 171 Melee 5 | . . 5 Projectile 172 | . 6 166 Critical Strikes 2 | . . 2 Damage Taken 2460 | . 61 2399 Core 416 | . 10 406 Absorbed by Shields . | . . . Redirected to Shielding 2 | . . 2 Regen/Repaired (Parts) 66 | . . 66 Core Remaining (%) 98 | 100 96 . Volleys Fired 153 | . 28 125 Largest 2 | . 2 2 Hottest 136 | . 100 136 Shots Fired 285 | . 48 237 Gun 219 | . 48 171 Cannon 52 | . . 52 Launcher 14 | . . 14 Special . | . . . Kinetic 201 | . 30 171 Thermal 70 | . 18 52 Explosive 14 | . . 14 Electromagnetic . | . . . Robot Hit Streak 19 | . 7 19 Robot Miss Streak 3 | . 3 3 Penetration Max . | . . . Secondary Targets 2 | . . 2 Max Gunslinging Chain 1 | . . 1 Shots Hit Robots 193 | . 31 162 Core Hits 82 | . 9 73 Critical Kills 1 | . . 1 Critical Parts Destroyed 1 | . . 1 Critical Strikes 4 | . 2 2 Burn 2 | . 2 . Destroy 2 | . . 2 Melee Attacks . | . . . Impact . | . . . Slashing . | . . . Piercing . | . . . Sneak Attacks . | . . . Combat Hostiles . | . . . Follow-up Attacks . | . . . Damage Inflicted 3516 | . 418 3098 Guns 1907 | . 418 1489 Cannons 616 | . . 616 Explosions 985 | . . 985 Melee . | . . . Ramming 8 | . . 8 Kinetic 1731 | . 242 1489 Thermal 792 | . 176 616 Explosive 985 | . . 985 Electromagnetic . | . . . Impact . | . . . Slashing . | . . . Piercing . | . . . Highest Corruption . | . . . Average Corruption . | . . . Corruption Purged . | . . . Corruption Blocked . | . . . Overload Shots . | . . . Overflow Damage 29 | . . 29 Projectiles 2 | . . 2 Explosions 27 | . . 27 Melee . | . . . Knockbacks . | . . . Impact . | . . . Kinetic . | . . . Secondary . | . . . Self-Inflicted Damage 241 | . . 241 Shots 6 | . . 6 Rammed 1 | . . 1 Targets Rammed 1 | . . 1 Kicked . | . . . Crushed . | . . . Highest Temperature 324 | . 324 174 Average Temperature 68 | . 127 37 Received Heat Transfer 768 | . 36 732 Effects 2 | . 2 . Interference 1 | . 1 . Short Circuit 1 | . 1 . Siege Activations . | . . . Martial Activations . | . . . Shielding Activations . | . . . Robots Disrupted . | . . . Combat Hostiles . | . . . Robots Corrupted . | . . . Combat Hostiles . | . . . Parts Fried . | . . . Impact Corruptions . | . . . Robots Melted . | . . . Combat Hostiles . | . . . Parts Melted 6 | . 3 3 Heat Transferred 1776 | . 666 1110 Parts Sabotaged . | . . . Parts Stolen . | . . . Parts Stripped . | . . . Power Chain Reactions . | . . . Alert | -11 -10 -9 ------- Run | Yrd Mat Mat Maximum Alert Level 2 | . . 2 Low Security (%) 81 | 100 100 74 Level 1 12 | . . 17 Level 2 5 | . . 8 Level 3 . | . . . Level 4 . | . . . Level 5 . | . . . High Security . | . . . Max Security . | . . . Peak Influence 443 | . 45 443 Initial . | . . . Average 90 | . 2 126 Influence Increases 1246 | . 85 1161 Destroy 0b10 Robot/C 680 | . 40 640 Destroy 0b10 Robot/NC 80 | . 15 65 Destroy Leader 198 | . 6 192 Successful Hack 21 | . 9 12 Disable Machine 30 | . . 30 Destroy Structure 117 | . . 117 Partial Spotted 15 | . 15 . Lose Combat Pursuer 105 | . . 105 Influence Decreases 817 | . 85 732 Time Decay 517 | . 85 432 Lost Part 150 | . . 150 Purge Threat 150 | . . 150 Squads Dispatched 6 | . . 6 Investigation 3 | . . 3 Extermination . | . . . Reinforcement 3 | . . 3 Assault . | . . . Garrison . | . . . Intercept . | . . . Searches Triggered . | . . . Construction Impeded 1 | . . 1 Haulers Reinforced . | . . . Active Scanning Responses . | . . . Cargo Convoy Interrupts . | . . . Stealth | -11 -10 -9 --------- Run | Yrd Mat Mat Distress Signals 6 | . 1 5 Communications Jammed . | . . . Distress Signals . | . . . Times Spotted 66 | . 7 59 Peak Tracking Total 5 | . 2 5 Tactical Retreats 5 | . . 5 Traps | -11 -10 -9 ------- Run | Yrd Mat Mat Traps Triggered 2 | . . 2 Indirectly . | . . . Trap Hack Attempts . | . . . Triggered . | . . . Disarmed 6 | . 6 . Reprogrammed . | . . . Reused . | . . . Traps Extracted . | . . . Installed . | . . . Triggered . | . . . Machines | -11 -10 -9 ---------- Run | Yrd Mat Mat Machines Disabled 2 | . . 2 Max in Single Turn 1 | . . 1 Machines Repaired . | . . . Machines Dismantled . | . . . Machines Sabotaged . | . . . Overloaded Fab Kills . | . . . Hacking | -11 -10 -9 --------- Run | Yrd Mat Mat Machines Accessed 18 | . 8 10 Terminals 12 | . 6 6 Fabricators . | . . . Repair Stations 1 | . . 1 Recycling Units 3 | . 2 1 Scanalyzers 2 | . . 2 Garrison Access . | . . . Total Hacks 67 | . 23 44 Successful 32 | . 9 23 Failed 33 | . 14 19 Catastrophic 6 | . 1 5 Database Lockouts 2 | . . 2 Manual 6 | . . 6 Terminals 40 | . 19 21 Fabricators . | . . . Repair Stations 4 | . . 4 Recycling Units 9 | . 4 5 Scanalyzers 14 | . . 14 Garrison Access . | . . . Terminal Hacks 14 | . 7 7 Record 1 | . . 1 Part Schematic 1 | . . 1 Prototype ID Bank 1 | . 1 . Emergency Access Points 1 | . . 1 Alert Level 2 | . 1 1 Unreport Threat 1 | . . 1 Locate Traps 2 | . 2 . Disarm Traps 1 | . 1 . Transport Status 1 | . . 1 Hauler Manifests 1 | . 1 . Zone Layout 2 | . 1 1 Fabricator Hacks . | . . . Repair Station Hacks 4 | . . 4 Scan Component 2 | . . 2 Repair 2 | . . 2 Recycling Unit Hacks 2 | . 2 . Retrieve Components 2 | . 2 . Scanalyzer 12 | . . 12 Insert Component 5 | . . 5 Analyze 7 | . . 7 Garrison Access Hacks . | . . . Unauthorized Hacks . | . . . Terminals . | . . . Fabricators . | . . . Repair Stations . | . . . Recycling Units . | . . . Scanalyzers . | . . . Garrison Access . | . . . Data Cores Recovered . | . . . Used . | . . . Hacking Detections 18 | . 8 10 Full Trace Events 4 | . 1 3 Feedback Events . | . . . Feedback Blocked . | . . . Robot Schematics Acquired . | . . . Robots Built . | . . . Authchips . | . . . Time . | . . . Total Robot Build Rating . | . . . Part Schematics Acquired 6 | . . 6 Parts Built . | . . . Authchips . | . . . Time . | . . . Total Part Build Rating . | . . . Part Studies Acquired . | . . . Parts Repaired 2 | . . 2 Time 52 | . . 52 Parts Recycled . | . . . Recycled Matter . | . . . Retrieved Matter . | . . . Retrieved Components 20 | . 20 . Parts Scanalyzed 5 | . . 5 Part Schematics Acquired 5 | . . 5 Parts Damaged . | . . . Bothacking | -11 -10 -9 ------------ Run | Yrd Mat Mat Used RIF Installer . | . . . Robots Hacked . | . . . Non-combat . | . . . Combat . | . . . Robot Hacks Applied . | . . . Relay Couplers Released . | . . . Fabnet Peak Effective % . | . . . Robots Rewired . | . . . Allies Hacked . | . . . Hacks Repelled . | . . . Allies | -11 -10 -9 -------- Run | Yrd Mat Mat Total Allies . | . . . Largest Group . | . . . Highest-Rated Group . | . . . Highest-Rated Ally . | . . . Total Orders . | . . . Ally Attacks . | . . . Total Damage . | . . . Kills . | . . . Allies Corrupted . | . . . Allies Melted . | . . . Intel | -11 -10 -9 ------- Run | Yrd Mat Mat Active Infowar (turns) 1111 | . . 1111 Optics 1111 | . . 1111 Robot Analysis Total . | . . . Derelict Logs Recovered . | . . . Drone Launches . | . . . Drone Recoveries . | . . . Exploration | -11 -10 -9 ------------- Run | Yrd Mat Mat Turns Passed 3750 | 73 1024 2653 Spaces Moved 1453 | 45 559 849 Core 9 | 9 . . Treads 1412 | 36 559 817 Legs . | . . . Wheels 32 | . . 32 Hover . | . . . Flight . | . . . Fastest Speed 50 | 50 160 115 Average Speed 203 | 140 160 234 Slowest Speed 320 | 160 160 320 Overloaded Moves . | . . . Propulsion Burnouts . | . . . Robots Hopped . | . . . Potential Cave-ins . | . . . Cave-ins Triggered . | . . . Exploration Rate (%) 49 | 3 73 73 Regions Visited 2 Branch Regions . Pre-discovered Areas . | . . . Known Exits Taken . | . . . Unknown Exits Taken 2 | 1 1 . Scrap Searched . | . . . Spaces Dug . | . . . Terrain Destroyed 115 | . . 115 Melee . | . . . Projectile . | . . . AOE 115 | . . 115 Terrain Rammed . | . . . Walls Destroyed . | . . . Machines Disabled . | . . . Actions | -11 -10 -9 --------- Run | Yrd Mat Mat Total 1965 | 52 643 1270 Wait 224 | . 20 204 Move 1451 | 44 558 849 Hop . | . . . Pick Up 42 | 2 16 24 Fast Attach 30 | 6 6 18 Attach 10 | . . 10 Detach 4 | . 2 2 Swap 20 | . 3 17 Drop 30 | . 10 20 Fire 153 | . 28 125 Melee . | . . . Ram . | . . . Kick . | . . . Crush 1 | . . 1 Escape Stasis . | . . . Rewire . | . . . Trap . | . . . Miscellaneous . | . . . Route ------- -11/Scrapyard -10/Materials (discovered 4 exits: *Mat x2 / [*Min x2]) -9/Materials (discovered 4 exits: [*Mat x2] / [*Min x2]) History --------- Turn | Location | Event 6 | -11/Scrapyard | Discovered new exit (range 16) 74 | -11/Scrapyard | Entered Materials 225 | -10/Materials | Discovered new exit (range 9) 306 | -10/Materials | Build established: Mutant 461 | -10/Materials | Discovered new exit (range 11) 806 | -10/Materials | Discovered new exit (range 3) 882 | -10/Materials | Discovered new exit (range 16) 1098 | -10/Materials | Entered another Materials area 1098 | -9/Materials | Evolved 2 slots: Utility x2 1539 | -9/Materials | Repaired Lgt. Armor Plating 1567 | -9/Materials | Repaired Lgt. Armor Plating 2560 | -9/Materials | Lost 3 parts (1p1u1w) 2731 | -9/Materials | Core integrity fell below 50% 2829 | -9/Materials | Central database locked down 2926 | -9/Materials | Lost 4 parts (1p2n1u) 2937 | -9/Materials | Discovered new exit (range 7) 2982 | -9/Materials | Central database locked down 3198 | -9/Materials | Build established: Scavenger-Mutant 3207 | -9/Materials | Core integrity fell below 20% 3242 | -9/Materials | Lost 5 parts (1n1u3w) 3265 | -9/Materials | Discovered new exit (range 18) 3485 | -9/Materials | Discovered new exit (range 11) 3732 | -9/Materials | Discovered new exit (range 18) 3751 | -9/Materials | Destroyed by G-34 Mercenary with Small Laser Last Messages --------------- 03487_ K-01 Serf cleans the Electrolysis Chamber. 03590_ Critical hit (Burn: +37). 03596_ Rocket Launcher destroyed. 03598_ Y-45 Defender destroyed. [Achievement: Resistances Are Futile] 03598_ Terminal disabled. 03603_ U-05 Engineer lays Concrete. 03618_ U-05 Engineer builds a Wall. 03622_ U-05 Engineer builds a Door. 03626_ U-05 Engineer builds a Wall. 03631_ U-05 Engineer lays Concrete. 03640_ U-05 Engineer builds a Wall. 03711_ Discarded Imp. Terrain Scan Processor. 03712_ Acquired Core Shielding. 03732_ EXIT=FOUND 03749_ Triggered Alarm Trap. 03749_ An alarm sounds. 03749_ ALERT: Alarm triggered, dispatching investigation squad. Map ----- +----------------------------------------------------+ | #?# + """ #????? | | #?# """ # """ ### ## #????? | | #?# """ # ????# ## #????? | | #?# """ # ??????#!!!!!!## #????? | | #?# # ???????#!!!!!!## #????? | | #?# # ???????######### #????? | | #?######## ???????????????# #????? | | ?????????# ???????????????# #????? | | ?????????# ??????????##???# #????? | | ?????????# ??????????+ ???# #????? | | ?????????# ??????????# ???# #????? | | ?????????# ??????????# #### #????? | | ?????????# ??????????# ## #????? | | ?????????# ??????????# ##+###### | | ???????###+#??????????+ # # | | ???????# ??????????# # # | | ##?????# ?????###### t # # | | #?????# ?????# # """" # | | #?????# "?????+ + """" # | | #?????# ""?????# # """" # | | #?????# ""?????###### # # | | #?????# ""??????????# # """" # | | #?????# "??????????# # """" # | | ##?????#####??????????# # """" # | | #????????????????????# + # | | #????????????????????# @######### | | #????????????????????# #???????? | | %#??????????????????? #???????? | | #????????????????? #???????? | | #??????????????? +???????? | | #????????????? ##### #???????? | | #????????????#/#?????# #???????? | | #??????????? ???????# #???????? | | #??????????"?????????# #???????? | | #????????????????????# #???????? | | #????????????????????# g ????????? | | #????????????????????# ????????? | | ##????????????????????####????????? | | ??????????????????????????????????? | | ??????????????????????????????????? | | ??????????????????????????????????? | | ??????????????????????????????????? | | ??????????????????????????????????? | | | | | | | | | | | | | | | +----------------------------------------------------+ Best States ------------- Heat Dissipation 50 Energy Generation 12 Energy Capacity 265 Matter Stores 300 Matter Capacity 300 Sight Range 18 Terrain Scan Density 210 Armor Coverage 300 Core Shielding 20 Evasion (%) 40 Recoil Reduction 2 Trap Extractor Capacity 4 Item Schematics ----------------- Sensor Array | -9/Materials | Hacked Hacking Suite | -9/Materials | Scanalyzed Signal Interpreter | -9/Materials | Scanalyzed Rocket Launcher | -9/Materials | Scanalyzed Imp. Assault Rifle | -9/Materials | Scanalyzed Structural Scanner | -9/Materials | Scanalyzed Robot Schematics ------------------ None Fabricated ------------ Nothing Repaired ---------- Lgt. Armor Plating | 65% | -9/Materials Lgt. Armor Plating | 61% | -9/Materials Studied --------- None Alien Tech Used ----------------- None Achievements -------------- DATA ERROR: Steam Global Achievement% For Emergencies Only Organ Harvest Resistances Are Futile Spot Them First There's More Where That Came From Challenges ------------ None Game ------ Seed NodePortableDatajack Manual? 0 Play Time 00:31:30 Cumulative 34.7 hours Start 2025.10.23 @ 20:27:32 End 2025.10.23 @ 20:56:28 Sessions 1 Manual Loads 0 Difficulty Rogue Special Mode None Game No. 47 Rogue 47 Adventurer 0 Explorer 0 Win Type - Total 1 Types 1/0/0/0/0/0/0/0/0/0 Lore% 6 Gallery% 27 Achievement% 16 Wizard Run 0 Options --------- Layout 1 ASCII 0 Keyboard 0 Movement Mouse Keybinds 0 Fullscreen 1 Font 24/Terminus Map View 50x35 Zoom Use 0% Tactical HUD 1 Map Filters NONE Filters NONE Steam 1 RUN: 1090e052-5f9f-40f9-b3cc-56a5efd363f1